bitfinex/quotes_ETHUSD_20250821
["timestamp","ask_amount","ask_price","bid_price","bid_amount"]
[1755735633959,26.44025773,4317.8,4317.7,0.403]
[1755735634159,26.75545773,4317.8,4317.7,0.116]
[1755735634361,3.0,4317.7,4316.2,4.19]
[1755735634547,26.42025773,4317.0,4316.3,0.47986799]
[1755735634749,26.42025773,4317.0,4316.9,0.287]
[1755735635064,3.621,4317.6,4317.0,0.66]
[1755735635274,26.42025773,4317.7,4317.5,0.287]
[1755735635562,0.3152,4317.6,4317.2,0.66]
[1755735636338,26.42025773,4317.3,4316.7,4.7367]
[1755735636541,26.42025773,4317.3,4317.2,0.287]
[1755735637467,27.17815773,4317.3,4316.7,0.66]
[1755735637668,27.17815773,4317.3,4316.8,0.67725411]
[1755735638265,26.42025773,4316.9,4316.3,4.0747]
[1755735638465,26.42025773,4316.9,4316.4,0.66]
[1755735638762,26.42025773,4316.9,4316.8,0.001]
[1755735640445,11.61500293,4316.9,4316.8,0.001]
[1755735640856,11.61500293,4317.3,4316.9,0.66]
[1755735641057,11.61500293,4317.3,4317.2,0.3154]
[1755735641771,11.61500293,4317.3,4317.0,0.16485423]
[1755735641944,11.61500293,4317.3,4317.0,0.02316423]
[1755735642144,11.61500293,4317.3,4317.2,0.3154]
[1755735643640,11.92920293,4317.3,4316.8,0.001]
[1755735643841,0.7803,4317.3,4316.9,0.66]
[1755735644065,3.614,4317.6,4316.9,0.66]
[1755735644232,3.614,4317.6,4317.2,0.116]
[1755735644429,4.0801,4317.6,4317.5,0.116]
[1755735644632,0.7803,4317.6,4317.5,0.116]
[1755735644962,12.39530293,4317.6,4317.5,0.116]
[1755735647137,0.3142,4317.6,4317.5,0.116]
[1755735647445,11.92920293,4317.6,4317.5,0.116]
[1755735649060,11.61500293,4317.6,4317.5,0.4314]
[1755735651353,11.61500293,4317.6,4317.5,0.116]
[1755735652242,11.92920293,4317.6,4317.5,0.116]
[1755735652576,11.61500293,4317.6,4317.5,0.116]
[1755735652743,11.92920293,4317.6,4317.5,0.116]
[1755735653869,11.61500293,4317.6,4317.5,0.116]
[1755735655379,0.022,4317.8,4317.5,0.116]
[1755735655683,11.61500293,4317.6,4317.5,0.116]
[1755735656184,0.022,4317.8,4317.5,0.116]
[1755735656352,11.61500293,4317.6,4317.5,0.116]
[1755735656860,0.022,4317.8,4317.5,0.116]
[1755735657056,11.61500293,4317.6,4317.5,0.4314]
[1755735658785,0.002,4317.7,4317.5,0.4314]
[1755735658984,11.61500293,4317.6,4317.5,0.4314]
[1755735660283,0.002,4317.7,4317.5,0.4314]
[1755735660284,0.002,4317.7,4317.6,0.66]
[1755735660500,0.002,4317.7,4317.6,0.9754]
[1755735660664,0.002,4317.7,4317.6,1.4443]
[1755735661359,0.002,4317.7,4317.6,3.89956254]
[1755735661698,0.002,4317.7,4317.6,5.1579849]
[1755735661901,0.002,4317.7,4317.6,5.13482389]
[1755735664193,12.39730293,4317.7,4317.6,3.712]
[1755735667602,11.93120293,4317.7,4317.6,3.711]
[1755735667807,12.39730293,4317.7,4317.6,3.711]
[1755735670117,0.002,4317.7,4317.6,4.0264]
[1755735670318,0.002,4317.7,4317.6,7.35540153]
[1755735670606,0.002,4317.7,4317.6,8.44087833]
[1755735671713,0.002,4317.7,4317.6,11.44087833]
[1755735672787,1e-08,4317.7,4317.6,11.44087833]
[1755735672988,0.002,4318.2,4318.1,2.97583335]
[1755735673191,1e-08,4318.2,4318.1,21.50013628]
[1755735673487,1e-08,4318.2,4318.1,24.44427591]
[1755735673889,1e-08,4318.2,4318.1,9.23627298]
[1755735674108,1e-08,4318.2,4318.1,12.83327298]
[1755735675316,1e-08,4318.2,4318.1,12.83227298]
[1755735675513,1e-08,4318.2,4318.1,24.44727591]
[1755735676010,1e-08,4318.2,4318.1,12.83227298]
[1755735676252,1e-08,4318.2,4318.1,24.44727591]
[1755735678494,0.002,4319.0,4318.6,2.97556522]
[1755735678495,1e-08,4318.7,4318.6,2.97556522]
[1755735678706,1e-08,4318.7,4318.6,21.93858032]
[1755735679017,1e-08,4318.7,4318.6,22.38142467]
[1755735679200,1e-08,4318.7,4318.6,7.17142174]
[1755735679409,1e-08,4318.7,4318.6,10.76442174]
[1755735680825,1e-08,4318.7,4318.6,7.17142174]
[1755735681021,1e-08,4318.7,4318.6,10.76442174]
[1755735681232,1e-08,4318.7,4318.6,10.76342174]
[1755735681820,1e-08,4318.7,4318.6,10.94098298]
[1755735682009,1e-08,4318.7,4318.6,22.55598591]
[1755735682619,1e-08,4318.8,4318.7,5.97551161]
[1755735682796,1e-08,4319.0,4318.9,5.97540438]
[1755735683001,0.4525,4320.8,4319.0,3.0]
[1755735683243,0.4525,4320.8,4319.9,0.66]
[1755735683532,0.4525,4320.8,4320.7,0.116]
[1755735683828,0.7462,4320.8,4320.6,3.592]
[1755735684036,0.7462,4320.8,4320.7,3.594]
[1755735684528,12.36120293,4320.8,4320.7,3.594]
[1755735685527,0.7462,4320.8,4320.7,0.66]
[1755735685702,12.36120293,4320.8,4320.7,4.27614439]
[1755735685906,12.36120293,4320.8,4320.7,0.66]
[1755735686227,12.36120293,4320.8,4320.7,4.252]
[1755735687210,12.36120293,4320.8,4320.7,3.592]
[1755735691614,12.36320293,4320.8,4320.7,3.592]
[1755735691933,0.7482,4320.8,4320.7,3.592]
[1755735692106,12.36320293,4320.8,4320.7,3.592]
[1755735693214,12.36320293,4320.8,4320.7,3.587]
[1755735693640,12.36320293,4320.8,4320.7,3.703]
[1755735694422,12.36320293,4320.8,4320.7,0.116]
[1755735694624,12.36320293,4320.8,4320.7,3.7]
[1755735696244,12.36320293,4320.8,4320.7,0.116]
[1755735696441,12.36320293,4320.8,4320.7,3.698]
[1755735697114,12.36320293,4320.8,4320.7,4.358]
[1755735697312,12.36320293,4320.8,4320.7,4.38114439]
[1755735697716,12.36320293,4320.8,4320.7,4.358]
[1755735698116,0.3157,4320.8,4320.7,4.358]
[1755735698315,0.022,4320.8,4320.7,5.02756952]
[1755735698520,0.022,4320.8,4320.7,5.34386952]
[1755735699129,0.022,4320.8,4320.7,7.6583093]
[1755735699422,0.022,4320.8,4320.7,8.1243093]
[1755735699626,0.022,4320.8,4320.7,4.0763093]
[1755735699816,0.022,4320.8,4320.7,8.1243093]
[1755735700213,0.022,4320.8,4320.7,7.5423093]
[1755735700416,0.022,4320.8,4320.7,11.1243093]
[1755735702841,0.002,4321.3,4321.2,2.97417198]
[1755735703052,0.002,4321.3,4321.2,10.70011442]
[1755735703223,0.002,4321.3,4321.2,11.14671442]
[1755735703423,0.002,4321.3,4321.2,11.26271442]
[1755735704326,0.002,4321.3,4321.2,11.37654793]
[1755735705056,0.002,4321.4,4321.2,11.37654793]
[1755735705057,1e-08,4321.4,4321.3,17.58912136]
[1755735705351,1e-08,4321.4,4321.3,20.71296099]
[1755735705740,1e-08,4321.4,4321.3,20.82896099]
[1755735706146,1e-08,4321.4,4321.3,24.41096099]
[1755735706857,1e-08,4321.4,4321.3,12.79595806]
[1755735707225,0.4406,4322.9,4322.7,2.97336895]
[1755735707559,11.61500293,4323.2,4322.7,2.97336895]
[1755735707560,0.4406,4323.2,4322.7,6.87046895]
[1755735707932,0.4406,4323.2,4322.7,6.67136895]
[1755735708138,0.3357,4322.8,4322.7,6.67136895]
[1755735708652,0.7763,4322.8,4322.7,6.67136895]
[1755735708965,0.002,4323.5,4322.9,2.97326193]
[1755735709163,0.4406,4323.4,4322.9,6.55426193]
[1755735709528,0.7563,4323.0,4322.9,6.55426193]
[1755735710162,0.3157,4323.0,4322.9,6.55426193]
[1755735710360,0.002,4323.0,4322.9,6.55426193]
[1755735710555,0.002,4323.0,4322.9,7.85757142]
[1755735710759,0.002,4323.0,4322.9,7.54247142]
[1755735711959,0.3157,4323.0,4322.9,7.54247142]
[1755735712531,0.3157,4323.0,4322.9,3.96147142]
[1755735712740,0.3157,4323.0,4322.9,7.7144897]
[1755735714159,0.3157,4323.0,4322.9,4.1334897]
[1755735714462,0.3157,4323.0,4322.9,7.7144897]
[1755735714836,12.37130293,4323.0,4322.9,1.16022777]
[1755735715031,12.37130293,4323.0,4322.9,3.75301828]
[1755735715230,12.37130293,4323.0,4322.9,4.41301828]
[1755735715443,12.37130293,4323.0,4322.9,3.75301828]
[1755735715864,12.37130293,4323.0,4322.9,4.41301828]
[1755735716158,0.3157,4323.0,4322.9,7.42367927]
[1755735716361,0.3157,4323.0,4322.9,7.40054666]
[1755735719059,0.7563,4323.0,4322.9,5.08728473]
[1755735719262,0.7563,4323.0,4322.9,1.50628473]
[1755735719560,0.3157,4323.0,4322.9,4.41201828]
[1755735719771,0.3157,4323.0,4322.9,6.72528021]
[1755735720058,0.7563,4323.0,4322.9,6.72528021]
[1755735720260,0.7563,4323.0,4322.9,0.83201828]
[1755735720430,0.7563,4323.0,4322.9,4.41201828]
[1755735721364,0.7563,4323.0,4322.9,3.58]
[1755735721931,0.7563,4323.0,4322.7,0.116]
[1755735722279,11.61500293,4322.8,4322.7,0.116]
[1755735722435,11.92870293,4322.8,4322.7,3.696]
[1755735722755,12.36930293,4322.8,4322.7,0.116]
[1755735722934,12.36930293,4322.8,4322.7,3.696]
[1755735725776,12.36930293,4322.8,4322.7,3.696]
[1755735726451,12.36930293,4322.8,4322.7,0.116]
[1755735727379,3.0,4322.7,4322.5,3.58]
[1755735727536,0.3137,4322.6,4322.1,0.116]
[1755735727741,11.61500293,4322.2,4321.8,0.136]
[1755735727970,0.116,4322.4,4321.8,0.136]
[1755735727971,11.92870293,4321.9,4321.8,0.136]
[1755735728272,12.36930293,4321.9,4320.2,2.31465605]
[1755735728445,3.4406,4321.8,4320.9,3.58]
[1755735728795,3.4406,4321.8,4320.1,2.31475767]
[1755735728796,0.3137,4321.0,4320.1,2.31475329]
[1755735728968,0.3137,4321.0,4320.8,3.601]
[1755735729272,0.4406,4320.9,4320.8,0.021]
[1755735729459,0.7543,4320.9,4320.8,0.021]
[1755735729658,12.36930293,4320.9,4320.8,0.021]
[1755735729971,15.36930293,4320.9,4320.8,0.021]
[1755735730175,15.36930293,4320.9,4319.8,0.02]
[1755735730176,3.0,4320.8,4320.1,3.58]
[1755735730475,14.92870293,4320.5,4320.1,3.58]
[1755735730974,15.38030293,4320.5,4320.1,3.58]
[1755735733978,12.38030293,4320.5,4320.1,3.58]
[1755735737790,12.38030293,4320.5,4319.8,0.02]
[1755735737989,12.38030293,4320.5,4320.2,3.581]
[1755735738804,12.38030293,4320.5,4319.8,0.02]
[1755735738955,12.38030293,4320.5,4320.1,3.581]
[1755735739377,15.38030293,4320.5,4320.1,3.581]
[1755735740662,15.38030293,4320.5,4320.3,0.001]
[1755735741801,3.0,4320.4,4320.3,0.001]
[1755735742100,3.7557,4320.4,4320.3,0.001]
[1755735743074,14.61500293,4320.0,4319.9,0.001]
[1755735743275,14.91910293,4320.0,4319.9,0.001]
[1755735743593,15.37070293,4320.0,4319.9,0.001]
[1755735744097,15.37070293,4320.0,4318.7,0.17264668]
[1755735744098,3.0,4319.9,4318.7,0.001]
[1755735744401,11.91910293,4318.9,4318.7,0.001]
[1755735744891,12.37070293,4318.9,4318.7,0.001]
[1755735745104,15.37070293,4318.9,4318.7,0.001]
[1755735755578,15.37070293,4318.9,4318.1,0.001]
[1755735755579,3.0,4318.8,4318.1,0.001]
[1755735755781,3.582,4318.7,4318.3,0.001]
[1755735755987,4.0336,4318.7,4318.3,0.001]
[1755735756282,0.3041,4318.4,4318.3,0.001]
[1755735756483,3.3041,4318.4,4318.3,0.001]
[1755735756683,3.7557,4318.4,4318.3,0.001]
[1755735757005,15.37070293,4318.4,4318.3,0.001]
[1755735761015,14.91910293,4318.4,4318.3,0.001]
[1755735761329,15.35830293,4318.4,4318.3,0.001]
[1755735767151,15.35830293,4318.4,4317.8,0.02]
[1755735767334,0.4392,4318.3,4317.4,0.001]
[1755735767535,14.61500293,4317.5,4317.4,0.001]
[1755735767735,14.61500293,4317.5,4317.4,0.2891]
[1755735768141,14.61500293,4317.5,4317.4,0.001]
[1755735768448,14.90240293,4317.5,4317.4,0.001]
[1755735768950,14.90240293,4317.5,4317.2,0.001]
[1755735769251,3.0,4317.3,4317.2,0.001]
[1755735769543,3.2874,4317.3,4317.2,0.001]
[1755735769910,3.7266,4317.3,4316.8,0.021]
[1755735770113,14.61500293,4316.9,4316.8,0.021]
[1755735770345,18.49340293,4316.9,4316.8,0.021]
[1755735770548,18.93260293,4316.9,4316.8,0.021]
[1755735771238,3.0,4316.8,4316.7,0.001]
[1755735771434,3.7266,4316.8,4316.7,0.001]
[1755735773255,0.7266,4316.8,4316.7,0.001]
[1755735773434,15.34160293,4316.8,4316.7,0.001]
[1755735774244,14.90240293,4316.8,4316.7,0.001]
[1755735774618,15.34160293,4316.8,4316.7,0.001]
[1755735778165,15.43449893,4316.8,4316.7,0.001]
[1755735781253,15.43449893,4316.8,4316.3,0.001]
[1755735781463,15.43449893,4316.8,4315.8,0.02]
[1755735781464,7.0232,4316.7,4315.8,0.02]
[1755735781660,14.90240293,4315.9,4315.8,0.02]
[1755735781854,18.48740293,4315.9,4315.8,0.02]
[1755735782437,18.92660293,4315.9,4315.8,0.02]
[1755735782637,18.20000293,4315.9,4315.8,0.3081]
[1755735782964,14.61500293,4315.9,4315.8,0.7785]
[1755735783347,18.20000293,4315.9,4315.8,0.02]
[1755735784130,18.20000293,4315.9,4315.8,0.3081]
[1755735784325,18.20000293,4315.9,4315.8,0.02]
[1755735785174,18.20000293,4315.9,4315.8,0.3081]
[1755735785462,18.20000293,4315.9,4315.8,0.02]
[1755735786444,18.20000293,4315.9,4315.8,0.3081]
[1755735786648,6.585,4315.9,4315.8,0.7785]
[1755735786870,14.61500293,4315.9,4315.8,0.7785]
[1755735789463,14.61500293,4315.9,4315.8,0.3081]
[1755735789652,14.61500293,4315.9,4315.8,0.7785]
[1755735790065,14.61500293,4315.9,4315.8,0.3081]
[1755735791057,0.002,4316.9,4315.8,0.3081]
[1755735791259,0.002,4316.9,4315.9,0.68317013]
[1755735791439,0.002,4316.9,4315.8,0.3081]
[1755735791440,11.61500293,4316.0,4315.8,0.02]
[1755735791643,3.287,4315.9,4315.8,0.02]
[1755735791843,14.61500293,4315.9,4315.8,0.3231]
[1755735792173,0.002,4316.9,4315.8,0.768]
[1755735792337,11.61700293,4316.9,4316.5,0.116]
[1755735792537,11.61500293,4316.6,4316.5,0.5609]
[1755735792766,11.61500293,4316.6,4316.5,0.864]
[1755735793271,11.61500293,4316.6,4315.8,0.02]
[1755735793272,3.0,4316.5,4315.8,0.02]
[1755735793472,11.61500293,4315.9,4315.8,0.4649]
[1755735793653,11.61500293,4315.9,4315.8,0.768]
[1755735794571,3.602,4316.5,4315.8,0.884]
[1755735794770,11.61500293,4316.0,4315.8,0.884]
[1755735794953,11.61500293,4316.0,4315.8,0.3231]
[1755735795153,11.61500293,4316.0,4315.9,0.5609]
[1755735795349,11.61500293,4316.0,4315.9,0.864]
[1755735795755,11.61500293,4316.4,4315.9,0.864]
[1755735796084,11.61500293,4316.4,4316.0,0.4449]
[1755735796381,11.61500293,4316.4,4316.3,0.4191]
[1755735796573,11.61500293,4316.4,4316.3,0.864]
[1755735796771,3.601,4316.8,4316.3,0.864]
[1755735796772,0.002,4316.9,4316.4,0.66]
[1755735796973,0.002,4316.9,4316.8,0.3031]
[1755735797371,0.002,4316.9,4316.8,0.748]
[1755735797676,0.002,4316.9,4316.8,4.358]
[1755735797972,0.002,4316.9,4316.8,1.1838]
[1755735798143,0.002,4316.9,4316.8,0.748]
[1755735798341,0.002,4316.9,4316.8,0.3031]
[1755735798585,0.7333,4316.9,4316.3,3.609]
[1755735798777,11.61500293,4316.6,4316.3,3.609]
[1755735799069,0.289,4316.9,4316.5,0.3031]
[1755735799070,0.002,4316.9,4316.5,0.3031]
[1755735799273,0.002,4316.9,4316.3,3.609]
[1755735799274,0.3002,4316.8,4316.3,3.609]
[1755735799473,0.002,4316.9,4316.3,3.609]
[1755735799647,0.002,4316.9,4316.7,0.3031]
[1755735800140,3.0,4316.7,4316.3,3.609]
[1755735800345,11.61500293,4316.5,4316.3,3.609]
[1755735800571,11.61500293,4316.5,4316.4,0.3031]
[1755735800742,14.90200293,4316.5,4315.8,0.02]
[1755735800956,11.61500293,4316.1,4315.8,0.02]
[1755735801152,11.61500293,4316.1,4316.0,0.3031]
[1755735802172,3.0,4316.4,4316.0,0.3031]
[1755735802384,0.002,4316.9,4316.1,0.4449]
[1755735802583,11.61500293,4316.8,4316.1,0.4449]
[1755735802787,11.61500293,4316.8,4316.7,0.3031]
[1755735803484,0.002,4316.9,4316.7,0.748]
[1755735803691,0.002,4316.9,4316.8,0.4449]
[1755735803848,0.002,4316.9,4316.8,5.017]
[1755735804041,0.002,4316.9,4316.8,8.99673105]
[1755735804243,0.002,4317.3,4316.9,2.31644924]
[1755735804567,0.002,4317.3,4317.2,3.27941613]
[1755735804940,0.002,4317.3,4317.2,7.34431613]
[1755735806077,0.002,4317.3,4317.2,5.026]
[1755735806278,0.002,4317.3,4317.2,9.23806344]
[1755735806843,0.002,4317.3,4317.2,9.35406344]
[1755735807271,0.002,4317.3,4317.2,38.75707408]
[1755735808862,0.002,4317.3,4317.2,38.87191316]
[1755735809372,0.002,4317.4,4317.3,5.97626247]
[1755735809684,0.002,4317.4,4317.3,9.0864021]
[1755735815673,0.002,4318.3,4317.7,5.97604789]
[1755735815989,0.002,4318.3,4317.7,36.29615853]
[1755735816155,0.002,4318.3,4317.7,36.85705853]
[1755735816661,0.002,4318.3,4318.2,5.97577972]
[1755735816979,0.002,4318.3,4317.3,2.36213963]
[1755735817179,0.002,4318.3,4317.4,5.96835717]
[1755735817379,0.002,4318.3,4317.6,2.31605378]
[1755735817580,0.002,4318.3,4318.2,0.3031]
[1755735817773,0.002,4318.3,4318.2,4.5921]
[1755735818091,0.002,4318.3,4318.2,6.95423963]
[1755735818592,0.002,4318.3,4318.2,5.99213963]
[1755735818593,0.289,4318.3,4318.2,5.99213963]
[1755735818779,0.289,4318.3,4318.2,4.29]
[1755735818780,0.002,4318.3,4318.2,4.29]
[1755735818987,0.002,4318.3,4318.2,0.98625779]
[1755735819182,0.002,4318.3,4318.2,4.61625779]
[1755735819374,0.002,4318.3,4318.2,6.93203751]
[1755735819689,0.002,4318.3,4318.2,4.5921]
[1755735819893,0.002,4318.3,4318.2,5.05131]
[1755735821863,0.002,4318.3,4318.2,5.05031]
[1755735822404,0.002,4318.3,4318.2,7.36608972]
[1755735822613,0.002,4318.3,4318.2,14.55608972]
[1755735822813,0.002,4318.3,4318.2,15.01318972]
[1755735823467,0.002,4318.3,4318.2,11.38518972]
[1755735823673,0.002,4318.3,4318.2,15.01018972]
[1755735825606,0.4627,4320.2,4319.2,5.97524356]
[1755735825779,0.4627,4320.2,4319.2,9.88804356]
[1755735826996,0.4627,4320.2,4319.2,10.00404356]
[1755735828177,0.4627,4320.5,4319.2,10.46114356]
[1755735829509,0.002,4320.2,4319.2,10.46114356]
[1755735830522,0.4647,4320.2,4319.2,6.83914356]
[1755735830721,0.4647,4320.2,4319.2,11.94019028]
[1755735831393,0.002,4320.2,4319.2,11.94019028]
[1755735831812,1e-08,4319.3,4319.2,11.94019028]
[1755735832188,1e-08,4319.8,4319.7,2.97497557]
[1755735832511,1e-08,4319.8,4319.7,36.31993596]
[1755735832712,1e-08,4319.8,4319.7,36.86988621]
[1755735833020,1e-08,4320.4,4320.3,2.97465407]
[1755735833227,1e-08,4320.4,4320.3,36.29646471]
[1755735833606,1e-08,4320.4,4320.3,36.86956471]
[1755735834111,0.4627,4322.3,4322.2,0.66]
[1755735834290,0.7566,4322.3,4322.2,4.29]
[1755735834486,0.7566,4322.3,4322.2,3.749]
[1755735835007,0.7566,4322.3,4322.2,4.409]
[1755735836605,0.7566,4322.3,4322.2,0.776]
[1755735836914,0.7566,4322.3,4322.2,4.408]
[1755735839485,0.7566,4322.3,4322.2,0.776]
[1755735839693,0.7566,4322.3,4322.2,4.402]
[1755735840226,0.7566,4322.3,4322.2,0.116]
[1755735840389,0.7566,4322.3,4322.2,3.742]
[1755735840591,0.7566,4322.3,4322.2,4.402]
[1755735840918,0.7566,4322.3,4322.2,4.91051374]
[1755735841614,0.7566,4322.3,4322.2,4.402]
[1755735841832,0.7566,4322.3,4322.2,0.776]
[1755735842001,0.7566,4322.3,4322.2,4.401]
[1755735843625,0.022,4322.8,4322.7,0.66]
[1755735843821,0.022,4322.8,4322.7,6.59736895]
[1755735844032,0.022,4322.8,4322.7,7.55021932]
[1755735844395,0.022,4322.8,4322.7,8.00731932]
[1755735844696,0.4627,4323.6,4323.4,0.66]
[1755735844910,0.2959,4323.5,4323.4,0.776]
[1755735845234,0.7586,4323.5,4323.4,4.398]
[1755735846320,0.7586,4323.5,4323.4,7.398]
[1755735846636,0.7586,4323.5,4323.4,8.1378]
[1755735846999,0.7586,4323.5,4323.4,4.5158]
[1755735847206,0.7586,4323.5,4323.4,7.397]
[1755735847718,0.2959,4323.5,4323.4,7.397]
[1755735847899,0.7586,4323.5,4323.4,7.397]
[1755735848105,0.7586,4323.5,4323.4,7.396]
[1755735850004,0.2959,4323.5,4323.4,7.396]
[1755735850206,0.002,4323.5,4323.4,8.1356]
[1755735851038,0.2959,4323.5,4323.4,8.1316]
[1755735851914,0.002,4323.5,4323.4,8.1316]
[1755735852215,0.002,4323.5,4323.4,10.4445944]
[1755735852814,0.002,4323.5,4323.4,10.7359944]
[1755735853739,0.002,4323.5,4323.4,8.423]
[1755735854145,0.2983,4323.5,4323.4,8.1276]
[1755735855037,0.002,4323.5,4323.4,10.4405944]
[1755735855249,0.002,4323.5,4323.4,8.1276]
[1755735856049,0.002,4323.5,4323.4,8.419]
[1755735856450,0.002,4323.5,4323.4,7.1199944]
[1755735856640,0.002,4323.5,4323.4,10.7289944]
[1755735858144,0.002,4323.5,4323.4,8.416]
[1755735858346,0.2983,4323.5,4323.4,8.1236]
[1755735858644,0.7466,4323.5,4323.4,8.1226]
[1755735859233,0.2983,4323.5,4323.4,8.1226]
[1755735860641,0.2983,4323.5,4323.4,4.5156]
[1755735860964,0.7466,4323.5,4323.4,0.116]
[1755735861164,0.7466,4323.5,4323.4,3.72]
[1755735861841,0.7466,4323.5,4323.4,0.116]
[1755735862226,0.7466,4323.5,4323.4,3.72]
[1755735862626,0.7466,4323.5,4323.4,3.719]
[1755735863645,0.7466,4323.5,4323.4,3.718]
[1755735863847,0.7466,4323.5,4323.4,0.116]
[1755735864052,0.7466,4323.5,4323.4,3.717]
[1755735865645,0.7466,4323.5,4323.4,3.716]
[1755735865845,0.7466,4323.5,4323.4,0.116]
[1755735866650,0.7466,4323.5,4323.4,3.715]
[1755735866851,0.7466,4323.5,4323.4,0.116]
[1755735867153,0.7466,4323.5,4323.4,3.714]
[1755735867514,0.7466,4323.5,4323.4,0.116]
[1755735867740,0.8626,4323.5,4323.4,3.6]
[1755735867940,12.43994207,4323.5,4323.4,3.6]
[1755735868139,0.8626,4323.5,4323.4,0.2566683]
[1755735868531,0.8626,4323.5,4323.4,0.0246683]
[1755735868751,0.8626,4323.5,4322.8,0.116]
[1755735868970,0.4483,4323.4,4322.9,3.6]
[1755735869260,11.87364207,4323.0,4322.8,0.116]
[1755735869552,0.4483,4322.9,4322.8,0.116]
[1755735869753,0.7446,4322.9,4322.8,0.116]
[1755735870324,0.7446,4322.9,4322.8,3.598]
[1755735873431,0.7446,4322.9,4322.7,3.596]
[1755735873632,12.02564207,4322.8,4322.7,3.596]
[1755735873838,12.32194207,4322.8,4322.7,3.596]
[1755735874958,11.57734207,4322.9,4322.7,4.3469]
[1755735875158,11.57734207,4323.0,4322.8,0.48263315]
[1755735875333,11.57734207,4323.0,4322.9,0.2914]
[1755735875525,11.57734207,4323.0,4322.9,1.14660312]
[1755735876475,26.34914227,4323.2,4322.9,1.14660312]
[1755735876662,0.002,4323.5,4323.0,0.48263208]
[1755735876841,0.002,4323.5,4323.4,0.2914]
[1755735877024,0.002,4323.5,4323.4,4.0014]
[1755735877224,0.002,4323.5,4323.4,4.4609]
[1755735877821,0.002,4323.5,4323.4,5.56699]
[1755735878429,0.002,4323.5,4323.4,5.10749]
[1755735878628,0.7466,4323.5,4323.4,3.71]
[1755735879368,0.2983,4323.5,4323.4,3.71]
[1755735880131,0.002,4323.5,4323.4,3.71]
[1755735880629,0.002,4323.5,4323.4,4.0014]
[1755735882156,0.002,4323.5,4323.4,3.9994]
[1755735882351,0.002,4323.5,4323.4,4.4634]
[1755735883069,0.002,4323.5,4323.4,0.4074]
[1755735883259,0.2981,4323.5,4323.4,3.707]
[1755735883466,0.002,4323.5,4323.4,4.016]
[1755735883663,0.002,4323.5,4323.4,4.48]
[1755735884037,0.002,4323.5,4323.4,7.9009944]
[1755735885671,0.002,4323.5,4323.4,7.8999944]
[1755735886174,0.002,4323.5,4323.4,4.3099944]
[1755735886471,0.002,4323.5,4323.4,7.8989944]
[1755735887278,0.002,4323.5,4323.4,7.8979944]
[1755735887461,0.002,4323.5,4323.4,4.3099944]
[1755735887661,0.002,4323.5,4323.4,7.8979944]
[1755735888775,0.002,4323.5,4323.4,8.07179873]
[1755735890797,0.002,4323.5,4323.4,8.07079873]
[1755735891159,0.002,4323.5,4323.4,4.48379873]
[1755735891359,0.002,4323.5,4323.4,8.07079873]
[1755735891596,0.002,4323.5,4323.4,4.48379873]
[1755735891798,0.002,4323.5,4323.4,8.07079873]
[1755735892689,0.2981,4323.5,4323.4,3.702]
[1755735893092,0.002,4323.5,4323.4,4.671]
[1755735893389,0.002,4323.5,4323.4,6.9839944]
[1755735893563,0.002,4323.5,4323.4,4.671]
[1755735893763,0.002,4323.5,4323.4,5.60071931]
[1755735893960,0.753,4323.5,4323.4,0.776]
[1755735894189,0.2981,4323.5,4323.4,4.362]
[1755735894392,0.02,4323.8,4323.5,0.66]
[1755735894576,0.02,4323.8,4323.7,0.969]
[1755735894768,0.02,4323.8,4323.7,4.671]
[1755735895764,0.02,4323.8,4323.7,4.362]
[1755735895958,0.771,4323.8,4323.7,4.362]
[1755735897596,0.3161,4323.8,4323.7,4.362]
[1755735897893,0.02,4323.8,4323.7,4.671]
[1755735898586,0.02,4323.8,4323.7,4.362]
[1755735898974,0.3161,4323.8,4323.7,4.362]
[1755735899292,0.02,4323.8,4323.7,4.671]
[1755735899494,0.02,4323.8,4323.7,5.1381]
[1755735900000,0.02,4323.8,4323.7,7.45093391]
[1755735900302,0.02,4323.8,4323.7,7.91493391]
[1755735901458,0.02,4323.8,4323.7,1.5521]
[1755735901661,0.02,4323.8,4323.7,0.776]
[1755735901662,0.3161,4323.8,4323.7,0.776]
[1755735901861,0.771,4323.8,4323.7,4.362]
[1755735904378,0.771,4323.8,4323.7,0.776]
[1755735904601,0.771,4323.8,4323.7,0.116]
[1755735904898,0.771,4323.8,4323.4,3.586]
[1755735905099,14.57709866,4323.5,4323.4,3.586]
[1755735905404,3.0,4323.4,4323.3,0.001]
[1755735905565,3.751,4323.4,4323.3,3.587]
[1755735905762,3.751,4323.4,4323.3,0.001]
[1755735905962,3.751,4323.4,4323.3,3.587]
[1755735906186,3.751,4323.4,4323.3,0.001]
[1755735906395,3.751,4323.4,4322.8,3.587]
[1755735906668,11.69309866,4323.2,4322.8,3.587]
[1755735906972,0.2961,4323.0,4322.8,3.587]
[1755735907700,0.751,4323.0,4322.8,3.587]
[1755735908498,27.11290371,4323.0,4322.8,3.587]
[1755735908912,27.11290371,4323.0,4322.8,0.001]
[1755735909204,30.11290371,4323.0,4322.8,0.001]
[1755735910402,30.11290371,4323.0,4322.4,0.001]